fUST/lending_fUST_20240605
["ID","MTS","AMOUNT","RATE_DAILY","PERIOD"]
[328568946,1717543834815,-171.54542508,0.00022499,2]
[328568947,1717543834825,-161.55085963,0.00022499,2]
[328568948,1717543834834,-500.0,0.00022499,2]
[328568949,1717543834843,-500.0,0.00022499,2]
[328568950,1717543834853,-438.79,0.00022499,2]
[328568951,1717543834863,-500.0,0.00022499,2]
[328568952,1717543834872,-572.11,0.00022499,2]
[328568953,1717543834885,-500.0,0.00022499,2]
[328568954,1717543834894,-500.0,0.00022499,2]
[328568955,1717543834904,-1021.04,0.00022499,2]
[328568956,1717543834915,-500.0,0.00022499,2]
[328568957,1717543834924,-59.20482607,0.00022499,2]
[328568975,1717543838029,-440.79517393,0.00022499,2]
[328568977,1717543838038,-500.0,0.00022499,2]
[328568979,1717543838047,-1055.85,0.00022499,2]
[328568981,1717543838057,-1188.45,0.00022499,2]
[328568983,1717543838066,-1034.52219277,0.000225,2]
[328568985,1717543838078,-996.20511983,0.000225,2]
[328568988,1717543838090,-1581.13137041,0.000225,2]
[328569000,1717543838195,-19950.27239687,0.000225,2]
[328569002,1717543838209,-1296.1,0.000225,2]
[328570094,1717543854628,461.604478,0.0002,2]
[328570098,1717543961849,252.23500693,9.999e-05,2]
[328570099,1717544432827,47132.0,0.00028,120]
[328570100,1717544754119,-225.5542316,0.0002,2]
[328570101,1717544838212,-2328.20571628,0.0002,2]
[328570102,1717544841106,-6305.94227635,0.0002,2]
[328570103,1717544844101,-523.65972874,0.0002,2]
[328570106,1717544950225,-3114.96978519,0.0002,2]
[328570140,1717545031971,-236.1805,0.00021875,2]
[328570142,1717545031981,-166.666666,0.00021918,2]
[328570144,1717545031990,-4234.71341694,0.00022353,2]
[328570146,1717545031999,-166.666666,0.00022431,2]
[328570148,1717545032009,-372.11026212,0.00022499,2]
[328570150,1717545032018,-153.0,0.000225,2]
[328570152,1717545032028,-153.0,0.000225,2]
[328570154,1717545032037,-402.3924714,0.000225,2]
[328570156,1717545032047,-292.1581273,0.000225,2]
[328570158,1717545032056,-205.0679425,0.000225,2]
[328570160,1717545032066,-153.0,0.000228,2]
[328570162,1717545032075,-153.0,0.000228,2]
[328570164,1717545032084,-153.0,0.000228,2]
[328570179,1717545032216,-205.0679425,0.000228,2]
[328570182,1717545032229,-205.0679425,0.000228,2]
[328570184,1717545032238,-204.219149,0.000228,2]
[328570186,1717545032247,-292.1581273,0.00022816,2]
[328570188,1717545032256,-291.8804944,0.00022816,2]
[328570190,1717545032265,-166.666666,0.00022944,2]
[328570191,1717545032274,-422.79055981,0.00023157,2]
[328570193,1717545032286,-316.21859173,0.00023158,2]
[328570195,1717545032295,-7365.6072277,0.00023233,2]
[328570197,1717545032304,-500.0,0.00023255,2]
[328570199,1717545032313,-500.0,0.00023255,2]
[328570202,1717545032326,-548.27,0.00023255,2]
[328570203,1717545032335,-500.0,0.00023255,2]
[328570205,1717545032344,-500.0,0.00023255,2]
[328570207,1717545032353,-200.0,0.00023255,2]
[328570210,1717545032364,-500.0,0.00023255,2]
[328570212,1717545032374,-978.5,0.00023255,2]
[328570214,1717545032383,-500.0,0.00023255,2]
[328570216,1717545032393,-1011.86,0.00023255,2]
[328570218,1717545032403,-1205.95,0.00023255,2]
[328570220,1717545032413,-500.0,0.00023255,2]
[328570222,1717545032422,-500.0,0.00023255,2]
[328570224,1717545032431,-9473.56544526,0.00023256,2]
[328570226,1717545032440,-1454.67178386,0.00023257,3]
[328570228,1717545032449,-300.51137347,0.00023258,2]
[328570230,1717545032458,-155.42514771,0.00023258,2]
[328570232,1717545032469,-166.14632356,0.00023258,2]
[328570234,1717545032478,-155.13948484,0.00023258,2]
[328570236,1717545032487,-204.79831609,0.00023258,2]
[328570238,1717545032497,-303.7395318,0.00023258,2]
[328570240,1717545032506,-300.88518786,0.00023258,2]
[328570241,1717545032515,-14032.55360872,0.00023258,2]
[328570243,1717545032525,-180.98009692,0.00023258,2]
[328570245,1717545032535,-269.43312445,0.00023259,2]
[328570247,1717545032544,-2402.75654892,0.00023259,2]
[328570249,1717545032553,-166.666666,0.00023457,2]
[328570251,1717545032564,-316.2185917,0.00023486,2]
[328570253,1717545032573,-1000.0,0.000235,2]
[328570255,1717545032583,-500.0,0.00023529,2]
[328570257,1717545032593,-500.0,0.00023529,2]
[328570259,1717545032602,-282.09822644,0.00023529,2]
[328570442,1717545037985,-500.0,0.00023255,2]
[328570443,1717545037994,-266.17177356,0.00023529,2]
[328570444,1717545038004,-233.13926573,0.00023529,2]
[328570445,1717545038025,-45.83205762,0.00023529,2]
[328570498,1717545046156,-221.02867665,0.00023529,2]
[328570499,1717545046166,-500.0,0.00023529,2]
[328570500,1717545046175,-978.5,0.00023529,2]
[328570501,1717545046185,-500.0,0.00023529,2]
[328570502,1717545046194,-1011.86,0.00023529,2]
[328570503,1717545046204,-1205.95,0.00023529,2]
[328570504,1717545046214,-500.0,0.00023529,2]
[328570505,1717545046224,-499.01824955,0.00023529,2]
[328570506,1717545046234,-500.0,0.00023591,2]
[328570507,1717545046243,-500.0,0.00023591,2]
[328570508,1717545046254,-500.0,0.00023591,2]
[328570509,1717545046264,-500.0,0.00023591,2]
[328570510,1717545046273,-500.0,0.00023591,2]
[328570511,1717545046286,-500.0,0.00023591,2]
[328570512,1717545046296,-500.0,0.00023591,2]
[328570513,1717545046305,-500.0,0.00023591,2]
[328570514,1717545046314,-500.0,0.00023591,2]
[328570515,1717545046325,-500.0,0.00023591,2]
[328570516,1717545046334,-164.681318,0.00023591,2]
[328570517,1717545046344,-500.0,0.00023591,2]
[328570518,1717545046353,-500.0,0.00023591,2]
[328570519,1717545046365,-500.0,0.00023591,2]
[328570520,1717545046375,-343.30964699,0.00023592,2]
[328570521,1717545046385,-268.19913908,0.00023593,2]
[328570522,1717545046394,-300.95262918,0.00023745,2]
[328570523,1717545046403,-151.0,0.0002377,5]
[328570524,1717545046412,-286.12542041,0.00023797,2]
[328570525,1717545046422,-246.60309513,0.00023798,2]
[328570526,1717545046432,-572.6468818,0.00023799,2]
[328570527,1717545069617,168.41266098,0.0002,2]
[328570528,1717545210901,154.93802479,9.999e-05,2]
[328570529,1717545935154,-235.32379315,0.00017898,2]
[328570530,1717546025115,-4376.28323336,0.00017898,2]
[328570531,1717546025138,-1686.46607542,0.00021,2]
[328570532,1717546025166,-2301.83090323,0.00021,2]
[328570533,1717546025186,-310.45106753,0.00021491,2]
[328570534,1717546025205,-166.666666,0.00021918,2]
[328570535,1717546025225,-65.78136324,0.00021942,2]
[328570536,1717546026098,-621.07441599,0.00021942,2]
[328570537,1717546145109,-206.96737835,0.00019391,2]
[328570929,1717546238273,-250.0,0.00021889,2]
[328570930,1717546238285,-166.666666,0.00021918,2]
[328570931,1717546238297,-2021.493334,0.00021942,2]
[328571178,1717546246276,-918.54881291,0.00021942,2]
[328571182,1717546246308,-11240.38031146,0.00021942,2]
[328571184,1717546246317,-224.97896443,0.00021942,2]
[328571186,1717546246326,-4342.44884551,0.00021942,2]
[328571188,1717546246335,-162.5158596,0.00021946,2]
[328571190,1717546246344,-167.331895,0.00021962,2]
[328571192,1717546246352,-307.7642272,0.00022146,2]
[328571194,1717546246361,-166.666666,0.00022515,2]
[328571196,1717546246370,-155.23305718,0.00022603,2]
[328571198,1717546246379,-600.0,0.00022914,2]
[328571200,1717546246388,-275.98705011,0.00023,2]
[328571202,1717546246396,-166.666666,0.00023113,2]
[328571204,1717546246405,-600.0,0.00023153,2]
[328571206,1717546246414,-250.0,0.00023255,2]
[328571208,1717546246423,-500.0,0.00023255,2]
[328571210,1717546246433,-150.0,0.00023342,2]
[328571212,1717546246442,-600.0,0.00023392,2]
[328571214,1717546246451,-153.0,0.00023534,2]
[328571216,1717546246460,-153.0,0.00023534,2]
[328571218,1717546246470,-153.0,0.00023534,2]
[328571220,1717546246479,-153.0,0.00023534,2]
[328571222,1717546246488,-153.0,0.00023534,2]
[328571224,1717546246497,-306.0,0.00023534,2]
[328571226,1717546246506,-4234.71341694,0.00023538,2]
[328571228,1717546246516,-369.94173979,0.00023583,2]
[328571230,1717546246527,-600.0,0.0002363,2]
[328571232,1717546246537,-153.0,0.00023638,2]
[328571234,1717546246547,-1000.0,0.00023655,2]
[328571236,1717546246556,-1000.0,0.0002368,2]
[328571238,1717546246565,-500.0,0.00023683,2]
[328571241,1717546246574,-500.0,0.00023683,2]
[328571243,1717546246584,-958.84,0.00023683,2]
[328571245,1717546246593,-500.0,0.00023683,2]
[328571246,1717546246602,-622.51,0.00023683,2]
[328571248,1717546246612,-500.0,0.00023683,2]
[328571251,1717546246621,-500.0,0.00023683,2]
[328571252,1717546246631,-225.45671998,0.000237,2]
[328571254,1717546246640,-166.666666,0.0002371,2]
[328571257,1717546246649,-1105.45,0.00023774,2]
[328571259,1717546246659,-500.0,0.00023774,2]
[328571260,1717546246668,-1000.0,0.00023775,2]
[328571263,1717546246678,-500.0,0.00023798,2]
[328571265,1717546246687,-500.0,0.00023798,2]
[328571267,1717546246697,-500.0,0.00023799,2]
[328571268,1717546246707,-500.0,0.00023799,2]
[328571270,1717546246716,-500.0,0.00023799,2]
[328571272,1717546246725,-500.0,0.00023799,2]
[328571274,1717546246734,-502.58,0.00023799,2]
[328571276,1717546246744,-500.0,0.00023799,2]
[328571278,1717546246754,-620.50364243,0.00023799,2]
[328571281,1717546246763,-500.0,0.00023799,2]
[328571283,1717546246773,-927.54,0.00023799,2]
[328571285,1717546246783,-500.0,0.00023799,2]
[328571287,1717546246792,-270.0,0.000238,2]
[328571289,1717546246802,-540.0,0.000238,2]
[328571290,1717546246811,-540.0,0.000238,2]
[328571292,1717546246820,-12642.67656051,0.000238,2]
[328571294,1717546246829,-160.0,0.000238,2]
[328571297,1717546246838,-151.0,0.00023807,5]
[328571299,1717546246848,-500.0,0.00023829,2]
[328571300,1717546246857,-500.0,0.00023829,2]
[328571303,1717546246867,-500.0,0.00023829,2]
[328571304,1717546246876,-500.0,0.00023829,2]
[328571307,1717546246885,-500.0,0.00023829,2]
[328571308,1717546246895,-500.0,0.00023829,2]
[328571310,1717546246904,-500.0,0.00023829,2]
[328571313,1717546246914,-500.0,0.00023829,2]
[328571314,1717546246923,-618.98110702,0.00023829,2]
[328571316,1717546246933,-16855.39462044,0.0002383,7]
[328571318,1717546246943,-17804.63458011,0.0002383,2]
[328571320,1717546246954,-514.91423311,0.00023831,2]
[328571323,1717546246968,-5270.47371894,0.00023831,2]
[328571744,1717546266891,224.97896443,0.0002,2]
[328571745,1717546309606,42.25157706,0.00017875,2]
[328571746,1717546309627,151.31008304,0.00017875,2]
[328571747,1717546309647,395.76190025,0.00017875,2]
[328571748,1717546316875,1559.5281717,2e-05,2]
[328571749,1717546316894,441.15227204,2e-05,2]
[328571750,1717547132097,-340.56710411,0.00018,2]
[328571751,1717547230108,-2870.17284685,0.00018,2]
[328571752,1717547235091,-3227.86874857,0.00018,2]
[328571753,1717547241094,-1467.53113778,0.00018,2]
[328571754,1717547248104,-2051.71450637,0.00018,2]
[328571755,1717547352100,-42.14565632,0.00018,2]
[328571756,1717547352120,-481.96974281,0.000189,2]
[328571757,1717547352140,-224.83709056,0.0002,2]
[328571758,1717547352160,-461.88468196,0.0002,2]
[328571759,1717547382989,155.92073337,9.999e-05,2]
[328571760,1717547383010,96.31427356,9.999e-05,2]
[328571761,1717547396940,70.35239244,0.000199,2]
[328571822,1717547432700,-351.323325,0.000199,2]
[328571824,1717547432711,-32216.02998924,0.000199,2]
[328571889,1717547438490,-2401.16644927,0.000199,2]
[328571890,1717547438499,-250.917186,0.00020872,2]
[328571891,1717547438509,-2446.57156764,0.00021,2]
[328571892,1717547438518,-164.793741,0.00021013,2]
[328571893,1717547438527,-163.762071,0.00021378,2]
[328571894,1717547438540,-181.76046751,0.00021617,2]
[328571895,1717547438550,-212.7243,0.00021618,2]
[328571896,1717547438559,-23689.3577713,0.00021619,2]
[328571897,1717547438569,-166.666666,0.00021918,2]
[328571898,1717547438580,-166.666666,0.00022431,2]
[328571899,1717547438589,-211.023,0.00022872,2]
[328571900,1717547438598,-609.565,0.00022872,2]
[328571901,1717547438607,-600.0,0.00022914,2]
[328571902,1717547438617,-166.666666,0.00022944,2]
[328571903,1717547438626,-567.16679431,0.0002314,2]
[328571904,1717547438636,-600.0,0.00023153,2]
[328571905,1717547438645,-151.0,0.00023239,5]
[328571906,1717547438655,-1149.12,0.00023326,2]
[328571907,1717547438664,-500.0,0.00023326,2]
[328571908,1717547438674,-500.0,0.00023326,2]
[328571909,1717547438683,-500.0,0.00023326,2]
[328571910,1717547438692,-500.0,0.00023326,2]
[328571911,1717547438702,-500.0,0.00023326,2]
[328571912,1717547438711,-500.0,0.00023326,2]
[328571913,1717547438720,-500.0,0.00023326,2]
[328571914,1717547438730,-500.0,0.00023326,2]
[328571915,1717547438739,-500.0,0.00023326,2]
[328571916,1717547438749,-500.0,0.00023326,2]
[328571917,1717547438759,-500.0,0.00023326,2]
[328571918,1717547438768,-500.0,0.00023326,2]
[328571919,1717547438778,-500.0,0.00023326,2]
[328571920,1717547438787,-500.0,0.00023326,2]
[328571921,1717547438796,-500.0,0.00023326,2]
[328571922,1717547438806,-500.0,0.00023326,2]
[328571923,1717547438816,-500.0,0.00023326,2]
[328571924,1717547438827,-500.0,0.00023326,2]
[328571925,1717547438835,-500.0,0.00023326,2]
[328571926,1717547438844,-500.0,0.00023326,2]
[328571927,1717547438853,-500.0,0.00023326,2]
[328571928,1717547438862,-500.0,0.00023326,2]
[328571929,1717547438870,-500.0,0.00023326,2]
[328571930,1717547438880,-247.14940822,0.00023326,2]
[328571931,1717547438890,-500.0,0.00023326,2]
[328571932,1717547438899,-500.0,0.00023326,2]
[328571933,1717547438908,-500.0,0.00023326,2]
[328571934,1717547438917,-500.0,0.00023326,2]
[328571935,1717547438927,-500.0,0.00023326,2]
[328571936,1717547438935,-500.0,0.00023326,2]
[328571937,1717547438945,-500.0,0.00023326,2]
[328571938,1717547438954,-500.0,0.00023326,2]
[328571939,1717547438963,-500.0,0.00023326,2]
[328571940,1717547438973,-500.0,0.00023326,2]
[328571941,1717547438982,-430.24007195,0.00023327,2]
[328571942,1717547438991,-485.78822063,0.00023327,2]
[328571943,1717547439001,-386.9052096,0.00023327,2]
[328571944,1717547439010,-500.0,0.00023327,2]
[328571945,1717547439020,-306.26266779,0.00023327,2]
[328571946,1717547439030,-946.87,0.00023327,2]
[328571947,1717547439039,-500.0,0.00023349,2]
[328571948,1717547439048,-500.0,0.00023349,2]
[328571949,1717547439059,-500.0,0.00023349,2]
[328571950,1717547439068,-974.96,0.00023349,2]
[328571951,1717547439079,-500.0,0.00023349,2]
[328571952,1717547439089,-621.24480575,0.00023349,2]
[328571953,1717547439099,-500.0,0.00023349,2]
[328571954,1717547439108,-500.0,0.00023349,2]
[328571955,1717547439118,-500.0,0.0002335,2]
[328571956,1717547439127,-500.0,0.0002335,2]
[328571957,1717547439137,-500.0,0.0002335,2]
[328571958,1717547439147,-500.0,0.0002335,2]
[328571959,1717547439156,-513.06,0.0002335,2]
[328571960,1717547439166,-626.22,0.0002335,2]
[328571961,1717547439176,-500.0,0.0002335,2]
[328571962,1717547439186,-994.11031601,0.00023392,2]
[328571963,1717547439195,-4234.71341694,0.0002342,2]
[328571964,1717547439204,-166.666666,0.00023456,2]
[328571965,1717547439214,-500.0,0.0002348,2]
[328571966,1717547439223,-1006.97748134,0.00023481,2]
[328571967,1717547439233,-962.1171488,0.00023524,2]
[328571968,1717547439242,-499.4598699,0.00023562,2]
[328571969,1717547439252,-962.11714876,0.00023577,2]
[328571970,1717547439262,-1149.12,0.000236,2]
[328571971,1717547439271,-946.87,0.00023601,2]
[328571972,1717547439281,-500.0,0.00023623,2]
[328571973,1717547439291,-500.0,0.00023623,2]
[328571974,1717547439301,-974.96,0.00023623,2]
[328571975,1717547439310,-500.0,0.00023623,2]
[328571976,1717547439320,-500.0,0.00023623,2]
[328571977,1717547439330,-303.32891507,0.00023624,2]
[328571978,1717547439339,-513.06,0.00023624,2]
[328571979,1717547439348,-500.0,0.00023624,2]
[328571980,1717547439358,-962.11714876,0.0002363,2]
[328571981,1717547439367,-962.11714876,0.00023682,2]
[328571982,1717547439377,-962.11714876,0.00023735,2]
[328571983,1717547439386,-2000.0,0.00023735,2]
[328571984,1717547439396,-270.0,0.000238,2]
[328571985,1717547439405,-540.0,0.000238,2]
[328571986,1717547439414,-540.0,0.000238,2]
[328571987,1717547439423,-160.0,0.000238,2]
[328571988,1717547439432,-437.80564073,0.00023807,2]
[328571989,1717547439441,-500.0,0.00023824,2]
[328571990,1717547439450,-500.0,0.00023824,2]
[328571991,1717547439459,-500.0,0.00023824,2]
[328571992,1717547439468,-500.0,0.00023824,2]
[328571993,1717547439477,-409.72617435,0.00023824,2]
[328571994,1717547439486,-373.78448824,0.00023824,2]
[328571995,1717547439495,-181.14599433,0.00023824,2]
[328571996,1717547439505,-500.0,0.00023824,2]
[328571997,1717547439514,-500.0,0.00023824,2]
[328571998,1717547439523,-160.10640681,0.00023824,2]
[328571999,1717547439533,-500.0,0.00023824,2]
[328572000,1717547439547,-500.0,0.00023824,2]
[328572001,1717547439556,-500.0,0.00023824,2]
[328572002,1717547439566,-500.0,0.00023824,2]
[328572003,1717547439576,-604.20311353,0.00023824,2]
[328572004,1717547439587,-529.4938263,0.00023824,2]
[328572005,1717547439595,-500.0,0.00023824,2]
[328572006,1717547439604,-347.015332,0.00023826,2]
[328572007,1717547439615,-347.015332,0.00023826,2]
[328572008,1717547439624,-151.0,0.00023826,2]
[328572009,1717547439635,-151.0,0.00023826,2]
[328572010,1717547439644,-151.0,0.00023826,2]
[328572011,1717547439653,-151.0,0.00023826,2]
[328572012,1717547439662,-151.0,0.00023826,2]
[328572013,1717547439671,-151.0,0.00023826,2]
[328572014,1717547439680,-252.682265,0.00023826,2]
[328572015,1717547439689,-252.682265,0.00023826,2]
[328572016,1717547439699,-887.449753,0.00023827,2]
[328572017,1717547439708,-887.449753,0.00023827,2]
[328572018,1717547439718,-1015.375278,0.00023827,2]
[328572019,1717547439727,-1015.375278,0.00023827,2]
[328572020,1717547439737,-151.0,0.00023827,2]
[328572021,1717547439747,-253.444752,0.00023827,2]
[328572022,1717547439757,-151.0,0.00023827,2]
[328572023,1717547439767,-491.464426,0.00023827,2]
[328572024,1717547439776,-151.0,0.00023827,2]
[328572025,1717547439786,-215.289862,0.00023827,2]
[328572026,1717547439796,-491.464426,0.00023827,2]
[328572027,1717547439806,-151.0,0.00023827,2]
[328572028,1717547439816,-514.5967,0.00023827,2]
[328572029,1717547439826,-514.5967,0.00023827,2]
[328572030,1717547439836,-8427.69731022,0.0002383,7]
[328572031,1717547439845,-2070.50151496,0.0002383,2]
[328572032,1717547439855,-347.015332,0.0002383,2]
[328572033,1717547439865,-347.015332,0.0002383,2]
[328572034,1717547439876,-151.0,0.0002383,2]
[328572035,1717547439886,-151.0,0.0002383,2]
[328572036,1717547439896,-151.0,0.0002383,2]
[328572037,1717547439905,-151.0,0.0002383,2]
[328572038,1717547439915,-491.464426,0.0002383,2]
[328572039,1717547439924,-151.0,0.0002383,2]
[328572040,1717547439933,-491.464426,0.0002383,2]
[328572041,1717547439943,-151.0,0.0002383,2]
[328572042,1717547439952,-514.5967,0.0002383,2]
[328572043,1717547439962,-514.5967,0.0002383,2]
[328572044,1717547439971,-151.0,0.0002383,2]
[328572045,1717547439981,-151.0,0.0002383,2]
[328572046,1717547439990,-151.0,0.0002383,2]
[328572047,1717547440000,-151.0,0.0002383,2]
[328572048,1717547440011,-252.682265,0.0002383,2]
[328572049,1717547440020,-252.682265,0.0002383,2]
[328572050,1717547440029,-6377.19867472,0.00023831,2]
[328572051,1717547440038,-155.63763529,0.00023831,2]
[328572052,1717547440048,-693.15714744,0.00023831,2]
[328572053,1717547440058,-500.0,0.00023831,2]
[328572054,1717547440067,-151.0,0.00023831,2]
[328572055,1717547440078,-151.0,0.00023831,2]
[328572056,1717547440088,-151.0,0.00023831,2]
[328572057,1717547440098,-500.0,0.00023831,2]
[328572058,1717547440212,-151.0,0.00023831,2]
[328572059,1717547440222,-151.0,0.00023831,2]
[328572060,1717547440232,-500.0,0.00023831,2]
[328572061,1717547440242,-151.0,0.00023831,2]
[328572062,1717547440252,-500.0,0.00023831,2]
[328572063,1717547440262,-500.0,0.00023831,2]
[328572064,1717547440273,-500.0,0.00023831,2]
[328572065,1717547440283,-151.0,0.00023831,2]
[328572066,1717547440292,-151.0,0.00023831,2]
[328572067,1717547440302,-500.0,0.00023831,2]
[328572068,1717547440312,-500.0,0.00023831,2]
[328572069,1717547440323,-500.0,0.00023831,2]
[328572070,1717547440333,-562.39,0.00023831,2]
[328572071,1717547440343,-500.0,0.00023831,2]
[328572072,1717547440352,-500.0,0.00023831,2]
[328572073,1717547440362,-500.0,0.00023831,2]
[328572074,1717547440372,-250.0,0.00023831,2]
[328572075,1717547440381,-368.49585271,0.00023831,2]
[328572076,1717547440391,-500.0,0.00023831,2]
[328572077,1717547440401,-529.79,0.00023831,2]
[328572078,1717547440411,-500.0,0.00023831,2]
[328572079,1717547440420,-500.0,0.00023831,2]
[328572080,1717547440430,-500.0,0.00023831,2]
[328572081,1717547440439,-543.37911113,0.00023831,2]
[328572082,1717547440449,-500.0,0.00023831,2]
[328572083,1717547440459,-887.449753,0.00023831,2]
[328572084,1717547440469,-500.0,0.00023831,2]
[328572085,1717547440478,-887.449753,0.00023831,2]
[328572086,1717547440488,-500.0,0.00023831,2]
[328572087,1717547440498,-500.0,0.00023831,2]
[328572088,1717547440507,-887.449753,0.00023831,2]
[328572089,1717547440516,-86.2089713,0.00023831,2]
[328572583,1717547446744,-500.0,0.00023349,2]
[328572585,1717547446753,-211.225918,0.00023825,2]
[328572587,1717547446762,-211.225918,0.00023825,2]
[328572589,1717547446771,-179.98457157,0.00023825,2]
[328572620,1717547447272,-31.24134643,0.00023825,2]
[328572621,1717547447282,-211.225918,0.00023825,2]
[328572622,1717547447291,-211.225918,0.0002383,2]
[328572623,1717547447300,-60.85746948,0.0002383,2]
[328572624,1717547447314,-150.36844852,0.0002383,2]
[328572625,1717547447323,-801.2407817,0.00023831,2]
[328572626,1717547447334,-1015.375278,0.00023831,2]
[328572627,1717547447343,-835.92425285,0.00023831,2]
[328573095,1717548346200,-376.85704208,0.00021731,2]
[328573096,1717548433098,-46.7083645,0.00021731,2]
[328573097,1717548433120,-500.0,0.00021917,2]
[328573098,1717548433141,-500.0,0.00021917,2]
[328573099,1717548433280,-500.0,0.00021917,2]
[328573100,1717548433302,-166.666666,0.00021918,2]
[328573101,1717548433322,-680.24011741,0.00022094,2]
[328573102,1717548434102,-6724.21481089,0.00022094,2]
[328573103,1717548434123,-8511.2376192,0.00022174,2]
[328573104,1717548434143,-166.666666,0.00022469,2]
[328573105,1717548434162,-166.666666,0.0002302,2]
[328573106,1717548434183,-151.0,0.00023254,5]
[328573107,1717548434202,-165.96,0.00023349,2]
[328573108,1717548434221,-484.29317051,0.00023349,2]
[328573109,1717548434241,-500.0,0.00023349,2]
[328573110,1717548434260,-4234.71341694,0.00023509,2]
[328573111,1717548434282,-500.0,0.00023559,2]
[328573112,1717548434304,-893.71,0.00023559,2]
[328573113,1717548434326,-500.0,0.00023559,2]
[328573114,1717548434347,-500.0,0.00023559,2]
[328573115,1717548434367,-500.0,0.00023559,2]
[328573116,1717548434387,-500.0,0.00023559,2]
[328573117,1717548434409,-500.0,0.00023559,2]
[328573118,1717548434431,-166.666666,0.00023571,2]
[328573119,1717548434451,-496.27094503,0.00023579,2]
[328573120,1717548434470,-962.66671025,0.00023593,2]
[328573121,1717548434489,-237.75,0.00023623,2]
[328573122,1717548434510,-867.97,0.00023679,2]
[328573123,1717548434531,-1119.38,0.00023679,2]
[328573124,1717548434550,-552.7587,0.00023679,2]
[328573125,1717548434570,-500.0,0.00023679,2]
[328573126,1717548434589,-9961.3215842,0.0002368,2]
[328573127,1717548434609,-2000.0,0.00023735,2]
[328573128,1717548434628,-270.0,0.000238,2]
[328573129,1717548434648,-160.0,0.000238,2]
[328573130,1717548434667,-2764.35348934,0.00023805,2]
[328573131,1717548434689,-2066.875083,0.00023824,2]
[328573132,1717548434709,-258.97387034,0.0002383,2]
[328573133,1717548434728,-239.89796603,0.00023831,2]
[328573134,1717548434747,-304.75790502,0.00023831,2]
[328573135,1717548434767,-155.33502581,0.00023831,2]
[328573136,1717548434786,-1900.92798858,0.00023832,2]
[328573137,1717548434805,-261.49427618,0.00023832,2]
[328573138,1717548434829,-500.0,0.00023832,2]
[328573139,1717548434851,-291.91971185,0.00023832,2]
[328573140,1717548434873,-500.0,0.00023832,2]
[328573141,1717548434894,-160.19335211,0.00023832,2]
[328573142,1717548434917,-282.90274577,0.00023832,2]
[328573143,1717548434938,-258.84814789,0.00023832,2]
[328573144,1717548434958,-431.26093406,0.00023832,2]
[328573145,1717548434981,-307.28266487,0.00023832,2]
[328573146,1717548451108,-500.0,0.00023679,2]
[328573147,1717548451130,-192.71733513,0.00023832,2]
[328573148,1717548451151,-500.0,0.00023832,2]
[328573149,1717548451171,-500.0,0.00023832,2]
[328573150,1717548451192,-353.24007057,0.00023832,2]
[328573151,1717548451214,-1097.32277218,0.00023833,2]
[328573152,1717548451233,-246.44365408,0.00023833,7]
[328573153,1717548451255,-187.93429574,0.00023833,2]
[328573154,1717548451274,-155.53240827,0.00023833,2]
[328573155,1717548451294,-531.41518031,0.00023833,2]
[328573226,1717548632707,-282.37693772,0.00021732,2]
[328573228,1717548632717,-890.88,0.00023251,2]
[328573229,1717548632727,-500.0,0.00023251,2]
[328573230,1717548632736,-151.0,0.0002326,5]